[Event "WYCC 2018 G18"]
[Site "Halkidiki"]
[Date "2018.10.21"]
[Round "3"]
[White "Sevilla, Julia"]
[Black "Manriquez Abarzua, Maria Belen"]
[Result "1/2-1/2"]
[ECO "E01"]
[WhiteElo "1947"]
[BlackElo "1630"]
[Annotator "NA"]
[PlyCount "68"]
[EventDate "2018.10.20"]
[EventType "swiss"]
[EventCountry "GRE"]
[SourceTitle "playchess.com"]
[Source "ChessBase"]
[SourceQuality "1"]
[TimeControl "40/5400+30:1800+30"]

1. d4 {[%emt 0:00:00]} d5 {[%emt 0:00:00]} 2. c4 {[%emt 0:00:00]} e6 {[%emt 0:00:11]} 3. g3 {[%emt 0:00:00]} Nf6 {[%emt 0:00:24]} 4. Bg2 {[%emt 0:00:00]} g6 {[%emt 0:03:22]} 5. Nf3 {[%emt 0:00:00]} Bg7 {[%emt 0:00:05]} 6. O-O {[%emt 0:00:00]} O-O {[%emt 0:00:14]} 7. Qc2 {[%emt 0:04:37]} Nbd7 {[%emt 0:02:33]} 8. Nbd2 {[%emt 0:07:05]} c5 {[%emt 0:12:13]} 9. dxc5 {[%emt 0:09:24]} Nxc5 {[%emt 0:11:48]} 10. cxd5 {[%emt 0:03:34]} Qxd5 {[%emt 0:02:28]} 11. Nc4 {[%emt 0:01:39]} Qe4 {[%emt 0:14:14]} 12. Qxe4 {[%emt 0:03:43]} Ncxe4 {[%emt 0:01:41]} 13. Be3 {[%emt 0:01:55]} b6 {[%emt 0:07:26]} 14. Rfd1 {[%emt 0:11:18]} Bb7 {[%emt 0:00:32]} 15. Bd4 {[%emt 0:01:00]} Rac8 {[%emt 0:10:25]} 16. Ne3 {[%emt 0:04:13]} Ba6 {[%emt 0:00:51]} 17. Kf1 {[%emt 0:15:22]} Rfd8 {[%emt 0:07:20]} 18. a4 {[%emt 0:08:03]} Nc5 {[%emt 0:02:36]} 19. Bxc5 {[%emt 0:05:08]} bxc5 {[%emt 0:01:22]} 20. Rxd8+ {[%emt 0:16:47]} Rxd8 {[%emt 0:00:07]} 21. Rd1 {[%emt 0:00:32]} Rb8 {[%emt 0:00:48]} 22. Rd6 {[%emt 0:02:18]} Rb6 {[%emt 0:01:41]} 23. Rxb6 {[%emt 0:01:09]} axb6 {[%emt 0:00:13]} 24. Nd2 {[%emt 0:02:22]} Nd7 {[%emt 0:05:03]} 25. Ndc4 {[%emt 0:01:19]} b5 {[%emt 0:00:47]} 26. axb5 {[%emt 0:00:25]} Bxb5 {[%emt 0:00:04]} 27. b3 {[%emt 0:00:39]} Nb8 {[%emt 0:01:45]} 28. Ke1 {[%emt 0:00:26]} Nc6 {[%emt 0:01:58]} 29. Nd6 {[%emt 0:00:13]} Nd4 {[%emt 0:00:09]} 30. Nxb5 {[%emt 0:00:53]} Nxb5 {[%emt 0:00:09]} 31. Bc6 {[%emt 0:00:29]} Nd4 {[%emt 0:00:35]} 32. Ba4 {[%emt 0:00:02]} Kf8 {[%emt 0:01:28]} 33. Nc4 {[%emt 0:00:01]} Nc2+ {[%emt 0:00:31]} 34. Kd2 {[%emt 0:00:08]} Nb4 {[%emt 0:00:09]} 1/2-1/2

[Event "WYCC 2018 G18"]
[Site "Halkidiki"]
[Date "2018.10.21"]
[Round "3"]
[White "Golsta, Madara"]
[Black "Abeysinghe, H M H Janandani"]
[Result "1-0"]
[ECO "B24"]
[WhiteElo "1938"]
[BlackElo "1698"]
[Annotator "NA"]
[PlyCount "39"]
[EventDate "2018.10.20"]
[EventType "swiss"]
[EventCountry "GRE"]
[SourceTitle "playchess.com"]
[Source "ChessBase"]
[SourceQuality "1"]
[TimeControl "40/5400+30:1800+30"]

1. e4 {[%emt 0:00:12]} c5 {[%emt 0:00:00]} 2. Nc3 {[%emt 0:00:21]} Nc6 {[%emt 0:00:05]} 3. Bb5 {[%emt 0:00:26]} Nd4 {[%emt 0:00:22]} 4. Bc4 {[%emt 0:00:19]} g6 {[%emt 0:01:00]} 5. Nf3 {[%emt 0:01:11]} Bg7 {[%emt 0:03:49]} 6. Nxd4 {[%emt 0:01:50]} cxd4 {[%emt 0:01:12]} 7. Qf3 {[%emt 0:00:17]} e6 {[%emt 0:02:48]} 8. Nb5 {[%emt 0:00:31]} d6 {[%emt 0:00:35]} 9. Qa3 {[%emt 0:01:18]} Be5 {[%emt 0:05:34]} 10. c3 {[%emt 0:04:07]} dxc3 {[%emt 0:05:42]} 11. d4 {[%emt 0:00:29]} cxb2 {[%emt 0:10:23]} 12. Bxb2 {[%emt 0:00:50]} d5 {[%emt 0:00:59]} 13. dxe5 {[%emt 0:02:29]} dxc4 {[%emt 0:00:26]} 14. Nd6+ {[%emt 0:00:06]} Kf8 {[%emt 0:02:12]} 15. Nxc8+ {[%emt 0:01:27]} Kg7 {[%emt 0:00:23]} 16. Nd6 {[%emt 0:00:06]} Qc7 {[%emt 0:00:31]} 17. O-O {[%emt 0:00:38]} Ne7 {[%emt 0:00:36]} 18. Qf3 {[%emt 0:00:30]} Nc8 {[%emt 0:01:46]} 19. Qf6+ {[%emt 0:00:11]} Kg8 {[%emt 0:00:22]} 20. Ne8 {[%emt 0:00:04]} 1-0

[Event "WYCC 2018 G18"]
[Site "Halkidiki"]
[Date "2018.10.21"]
[Round "3"]
[White "Zairbek kyzy, Begimay"]
[Black "Injac, Teodora"]
[Result "0-1"]
[ECO "B22"]
[WhiteElo "1919"]
[BlackElo "2258"]
[Annotator "ChessBase"]
[PlyCount "124"]
[EventDate "2018.10.20"]
[EventType "swiss"]
[EventCountry "GRE"]
[SourceTitle "playchess.com"]
[Source "ChessBase"]
[SourceQuality "1"]
[TimeControl "40/5400+30:1800+30"]

1. e4 {[%emt 0:00:00]} c5 {[%emt 0:00:00]} 2. c3 {[%emt 0:00:00]} e6 {[%emt 0:00:28]} 3. d4 {[%emt 0:00:00]} d5 {[%emt 0:00:06]} 4. Nd2 {[%emt 0:00:57]} Nc6 {[%emt 0:01:11]} 5. Ngf3 {[%emt 0:00:58]} Nf6 {[%emt 0:03:53]} 6. Bd3 {[%emt 0:00:14]} cxd4 {[%emt 0:09:41]} 7. cxd4 {[%emt 0:00:57]} dxe4 {[%emt 0:00:08]} 8. Nxe4 {[%emt 0:00:31]} Bb4+ {[%emt 0:07:58]} 9. Bd2 {[%emt 0:02:44]} O-O {[%emt 0:05:02]} 10. O-O {[%emt 0:00:14]} Bxd2 {[%emt 0:00:35]} 11. Qxd2 {[%emt 0:00:10]} Nd5 {[%emt 0:05:08]} 12. Rac1 {[%emt 0:02:52]} a6 {[%emt 0:07:07]} 13. Rfd1 {[%emt 0:01:40]} h6 {[%emt 0:05:47]} 14. a3 {[%emt 0:01:59]} Na5 {[%emt 0:03:06]} 15. Qc2 {[%emt 0:08:40]} Bd7 {[%emt 0:05:24]} 16. b4 {[%emt 0:04:16]} Nc6 {[%emt 0:01:01]} 17. Nc5 {[%emt 0:01:37]} Bc8 {[%emt 0:03:22]} 18. Qb3 {[%emt 0:01:27]} Nce7 {[%emt 0:00:51]} 19. Bb1 {[%emt 0:04:41]} b6 {[%emt 0:00:55]} 20. Qd3 {[%emt 0:01:46]} f5 {[%emt 0:06:20]} 21. Nb3 {[%emt 0:01:33]} Bb7 {[%emt 0:00:30]} 22. Re1 {[%emt 0:02:59]} Nf4 {[%emt 0:05:02]} 23. Qd1 {[%emt 0:01:00]} Neg6 {[%emt 0:02:48]} 24. g3 {[%emt 0:12:01]} Nh3+ {[%emt 0:00:40]} 25. Kf1 {[%emt 0:00:07]} Qd5 {[%emt 0:01:30]} 26. Re3 {[%emt 0:02:30]} f4 {[%emt 0:03:59]} 27. Rec3 {[%emt 0:03:41]} fxg3 {[%emt 0:01:56]} 28. hxg3 {[%emt 0:00:05]} Ne7 {[%emt 0:06:44]} 29. Nbd2 {[%emt 0:00:37]} Ng5 {[%emt 0:00:21]} 30. Nh4 {[%emt 0:14:50]} Qxd4 {[%emt 0:01:42]} 31. Qe2 {[%emt 0:01:15]} Qd5 {[%emt 0:05:38]} 32. f4 {[%emt 0:03:43]} Rad8 {[%emt 0:01:29]} 33. Ndf3 {[%emt 0:03:05]} Nxf3 {[%emt 0:00:12]} 34. Nxf3 {[%emt 0:00:03]} Nf5 {[%emt 0:00:39]} 35. Qf2 {[%emt 0:03:49]} Rc8 {[%emt 0:01:52]} 36. Bxf5 {[%emt 0:02:28]} exf5 {[%emt 0:00:48]} 37. Rxc8 {[%emt 0:00:13]} Rxc8 {[%emt 0:00:29]} 38. Rxc8+ {[%emt 0:00:05]} Bxc8 {[%emt 0:00:02]} 39. Qe3 {[%emt 0:01:12]} Qc4+ {[%emt 0:02:59]} 40. Ke1 {[%emt 0:00:00]} Qe6 {[%emt 0:00:00]} 41. Ne5 {[%emt 0:00:47]} Bb7 {[%emt 0:06:24]} 42. Qd4 {[%emt 0:03:43]} b5 {[%emt 0:01:08]} 43. Qd8+ {[%emt 0:02:28]} Kh7 {[%emt 0:00:01]} 44. Ke2 {[%emt 0:02:09]} Qa2+ {[%emt 0:06:38]} 45. Kd1 {[%emt 0:03:33]} Qxa3 {[%emt 0:10:22]} 46. Qb6 {[%emt 0:01:20]} Qb3+ {[%emt 0:01:38]} 47. Ke2 {[%emt 0:00:27]} Qb2+ {[%emt 0:03:31]} 48. Kd1 {[%emt 0:01:01]} Qb1+ {[%emt 0:01:30]} 49. Ke2 {[%emt 0:00:49]} Qe4+ {[%emt 0:00:07]} 50. Kd1 {[%emt 0:00:27]} Qd5+ {[%emt 0:02:31]} 51. Kc1 {[%emt 0:00:34]} Qh1+ {[%emt 0:02:27]} 52. Kb2 {[%emt 0:00:22]} Qg2+ {[%emt 0:00:14]} 53. Ka1 {[%emt 0:00:30]} Qh1+ {[%emt 0:01:27]} 54. Kb2 {[%emt 0:00:23]} Qg2+ {[%emt 0:00:01]} 55. Ka1 {[%emt 0:00:21]} Qxg3 {[%emt 0:01:08]} 56. Qxb7 {[%emt 0:00:32]} Qa3+ {[%emt 0:00:02]} 57. Kb1 {[%emt 0:00:58]} Qxb4+ {[%emt 0:00:01]} 58. Ka2 {[%emt 0:00:30]} Qd2+ {[%emt 0:00:50]} 59. Kb1 {[%emt 0:03:40]} Qxf4 {[%emt 0:00:16]} 60. Nc6 {[%emt 0:00:32]} Qe4+ {[%emt 0:00:13]} 61. Kb2 {[%emt 0:00:15]} f4 {[%emt 0:00:37]} 62. Qxa6 {[%emt 0:00:45]} f3 {[%emt 0:00:10]} 0-1

[Event "WYCC 2018 G18"]
[Site "Halkidiki"]
[Date "2018.10.21"]
[Round "3"]
[White "Gillis Onieva, Celia"]
[Black "Ni Mhuireagain, Eibhia"]
[Result "1-0"]
[ECO "D12"]
[WhiteElo "1892"]
[BlackElo "1655"]
[Annotator "NA"]
[PlyCount "57"]
[EventDate "2018.10.20"]
[EventType "swiss"]
[EventCountry "GRE"]
[SourceTitle "playchess.com"]
[Source "ChessBase"]
[SourceQuality "1"]
[TimeControl "40/5400+30:1800+30"]

1. d4 d5 2. c4 c6 3. Nf3 Nf6 4. e3 Bf5 5. Nc3 e6 6. Nh4 Bg4 7. Qb3 Qc7 8. h3 Bh5 9. g4 Bg6 10. Nxg6 hxg6 11. g5 Nfd7 12. Bg2 Nb6 13. c5 Nc4 14. e4 b6 15. exd5 exd5 16. O-O bxc5 17. Re1+ Kd8 18. Nxd5 cxd5 19. Bxd5 Nc6 20. Qxc4 Rxh3 21. dxc5 Ne5 22. Rxe5 Qxe5 23. Bxa8 Qe1+ 24. Qf1 Qe6 25. Bf4 Bxc5 26. Qd1+ Kc8 27. Rc1 Qf5 28. Qd5 Qg4+ 29. Qg2 1-0

[Event "WYCC 2018 G18"]
[Site "Halkidiki"]
[Date "2018.10.21"]
[Round "3"]
[White "Nistor, Valentina"]
[Black "Simic, Anja"]
[Result "1-0"]
[ECO "B53"]
[WhiteElo "1881"]
[BlackElo "1813"]
[Annotator "NA"]
[PlyCount "129"]
[EventDate "2018.10.20"]
[EventType "swiss"]
[EventCountry "GRE"]
[SourceTitle "playchess.com"]
[Source "ChessBase"]
[SourceQuality "1"]
[TimeControl "40/5400+30:1800+30"]

1. e4 {[%emt 0:00:00]} c5 {[%emt 0:00:00]} 2. Nf3 {[%emt 0:00:00]} d6 {[%emt 0:00:00]} 3. d4 {[%emt 0:00:00]} cxd4 {[%emt 0:00:00]} 4. Qxd4 {[%emt 0:00:00]} a6 {[%emt 0:00:02]} 5. c4 {[%emt 0:00:40]} Nc6 {[%emt 0:00:22]} 6. Qd2 {[%emt 0:02:34]} Nf6 {[%emt 0:02:04]} 7. Nc3 {[%emt 0:00:17]} g6 {[%emt 0:00:58]} 8. b3 {[%emt 0:00:47]} Bg7 {[%emt 0:00:36]} 9. Bb2 {[%emt 0:00:27]} O-O {[%emt 0:00:49]} 10. h3 {[%emt 0:03:03]} Qa5 {[%emt 0:15:14]} 11. Rb1 {[%emt 0:14:28]} Bd7 {[%emt 0:26:04]} 12. Bd3 {[%emt 0:04:23]} Rab8 {[%emt 0:15:02]} 13. a3 {[%emt 0:11:13]} Rfc8 {[%emt 0:11:29]} 14. O-O {[%emt 0:03:43]} Qd8 {[%emt 0:04:07]} 15. Rfe1 {[%emt 0:04:39]} e6 {[%emt 0:06:23]} 16. Rbd1 {[%emt 0:07:15]} Bf8 {[%emt 0:08:19]} 17. Bf1 {[%emt 0:07:44]} Qe7 {[%emt 0:02:59]} 18. Qe3 {[%emt 0:07:32]} Rd8 {[%emt 0:03:07]} 19. Rd2 {[%emt 0:00:47]} Be8 {[%emt 0:01:05]} 20. Red1 {[%emt 0:01:08]} Rbc8 {[%emt 0:00:33]} 21. Na4 {[%emt 0:03:11]} Rc7 {[%emt 0:00:44]} 22. Nb6 {[%emt 0:07:08]} Bg7 {[%emt 0:00:25]} 23. b4 {[%emt 0:05:16]} Bf8 {[%emt 0:00:30]} 24. Bc3 {[%emt 0:00:44]} Nd7 {[%emt 0:00:33]} 25. Na4 {[%emt 0:08:22]} Nf6 {[%emt 0:00:31]} 26. b5 {[%emt 0:00:20]} Nb8 {[%emt 0:00:27]} 27. Ba5 {[%emt 0:00:29]} axb5 {[%emt 0:00:23]} 28. cxb5 {[%emt 0:03:14]} d5 {[%emt 0:00:40]} 29. Bxc7 {[%emt 0:00:31]} Qxc7 {[%emt 0:00:20]} 30. exd5 {[%emt 0:00:50]} Nxd5 {[%emt 0:00:14]} 31. Qb3 {[%emt 0:00:40]} Qe7 {[%emt 0:00:42]} 32. Bc4 {[%emt 0:02:21]} Qxa3 {[%emt 0:00:28]} 33. Qxa3 {[%emt 0:00:23]} Bxa3 {[%emt 0:00:06]} 34. Bxd5 {[%emt 0:00:29]} exd5 {[%emt 0:00:25]} 35. Rxd5 {[%emt 0:00:21]} Rxd5 {[%emt 0:00:48]} 36. Rxd5 {[%emt 0:00:01]} Nd7 {[%emt 0:00:46]} 37. Ne5 {[%emt 0:00:52]} Nxe5 {[%emt 0:00:28]} 38. Rxe5 {[%emt 0:00:05]} Kf8 {[%emt 0:00:32]} 39. Nb6 {[%emt 0:01:50]} f6 {[%emt 0:00:34]} 40. Rd5 {[%emt 0:00:00]} Ke7 {[%emt 0:00:00]} 41. Rd3 {[%emt 0:02:32]} Bc5 {[%emt 0:03:59]} 42. Nd5+ {[%emt 0:01:30]} Kf7 {[%emt 0:02:17]} 43. Nc7 {[%emt 0:00:50]} Ke7 {[%emt 0:01:54]} 44. Nxe8 {[%emt 0:01:13]} Kxe8 {[%emt 0:00:06]} 45. Kf1 {[%emt 0:03:45]} Ke7 {[%emt 0:00:25]} 46. Ke2 {[%emt 0:02:01]} b6 {[%emt 0:00:43]} 47. f3 {[%emt 0:03:08]} h5 {[%emt 0:03:31]} 48. h4 {[%emt 0:02:04]} Ke6 {[%emt 0:04:10]} 49. g4 {[%emt 0:01:20]} hxg4 {[%emt 0:00:53]} 50. fxg4 {[%emt 0:00:05]} Ke7 {[%emt 0:02:00]} 51. Kf3 {[%emt 0:00:52]} Ke6 {[%emt 0:00:46]} 52. Rd8 {[%emt 0:01:23]} Ke7 {[%emt 0:00:37]} 53. Rd5 {[%emt 0:00:15]} Ke6 {[%emt 0:00:26]} 54. Ke4 {[%emt 0:01:07]} Bf2 {[%emt 0:01:09]} 55. h5 {[%emt 0:00:49]} gxh5 {[%emt 0:00:08]} 56. gxh5 {[%emt 0:00:14]} Kf7 {[%emt 0:00:27]} 57. Kf5 {[%emt 0:00:13]} Kg7 {[%emt 0:00:30]} 58. Rd7+ {[%emt 0:01:05]} Kh6 {[%emt 0:00:34]} 59. Kxf6 {[%emt 0:01:27]} Kxh5 {[%emt 0:00:09]} 60. Rf7 {[%emt 0:00:39]} Kg4 {[%emt 0:00:46]} 61. Ke6 {[%emt 0:00:08]} Bc5 {[%emt 0:00:21]} 62. Kd5 {[%emt 0:00:17]} Kg5 {[%emt 0:00:16]} 63. Kc6 {[%emt 0:00:10]} Kg6 {[%emt 0:00:08]} 64. Rb7 {[%emt 0:00:06]} Kf6 {[%emt 0:00:13]} 65. Rxb6 {[%emt 0:00:20]} 1-0

[Event "WYCC 2018 G18"]
[Site "Halkidiki"]
[Date "2018.10.21"]
[Round "3"]
[White "Salimova, Asal"]
[Black "Gajcin, Marina"]
[Result "0-1"]
[ECO "A45"]
[WhiteElo "1870"]
[BlackElo "2153"]
[Annotator "NA"]
[PlyCount "88"]
[EventDate "2018.10.20"]
[EventType "swiss"]
[EventCountry "GRE"]
[SourceTitle "playchess.com"]
[Source "ChessBase"]
[SourceQuality "1"]
[TimeControl "40/5400+30:1800+30"]

1. d4 {[%emt 0:00:00]} Nf6 {[%emt 0:00:00]} 2. Bf4 {[%emt 0:00:00]} g6 {[%emt 0:00:00]} 3. Nc3 {[%emt 0:00:00]} d5 {[%emt 0:00:41]} 4. e3 {[%emt 0:00:00]} Bg7 {[%emt 0:01:37]} 5. h4 {[%emt 0:00:00]} h5 {[%emt 0:01:23]} 6. Nf3 {[%emt 0:00:05]} Bg4 {[%emt 0:07:01]} 7. Be2 {[%emt 0:00:05]} c6 {[%emt 0:00:19]} 8. Ne5 {[%emt 0:01:46]} Bxe2 {[%emt 0:03:24]} 9. Qxe2 {[%emt 0:00:39]} Nbd7 {[%emt 0:08:41]} 10. f3 {[%emt 0:01:42]} Nxe5 {[%emt 0:05:41]} 11. Bxe5 {[%emt 0:00:08]} Qb6 {[%emt 0:01:41]} 12. O-O-O {[%emt 0:01:11]} O-O-O {[%emt 0:06:43]} 13. Kb1 {[%emt 0:03:53]} Ne8 {[%emt 0:01:42]} 14. Bxg7 {[%emt 0:01:20]} Nxg7 {[%emt 0:00:02]} 15. Na4 {[%emt 0:06:43]} Qb5 {[%emt 0:12:24]} 16. Qxb5 {[%emt 0:01:48]} cxb5 {[%emt 0:00:06]} 17. Nc5 {[%emt 0:00:11]} Nf5 {[%emt 0:14:07]} 18. Rde1 {[%emt 0:00:25]} Rd6 {[%emt 0:04:54]} 19. c3 {[%emt 0:00:48]} e6 {[%emt 0:01:55]} 20. Rh3 {[%emt 0:11:55]} Ne7 {[%emt 0:02:40]} 21. e4 {[%emt 0:01:07]} b4 {[%emt 0:02:10]} 22. Kc2 {[%emt 0:05:49]} Nc6 {[%emt 0:03:10]} 23. Nd3 {[%emt 0:14:29]} bxc3 {[%emt 0:01:20]} 24. bxc3 {[%emt 0:00:05]} Kb8 {[%emt 0:00:29]} 25. Rb1 {[%emt 0:05:07]} Rc8 {[%emt 0:00:53]} 26. Kd2 {[%emt 0:00:42]} Na5 {[%emt 0:03:42]} 27. Ne5 {[%emt 0:02:07]} Nc4+ {[%emt 0:00:45]} 28. Nxc4 {[%emt 0:00:06]} Rxc4 {[%emt 0:00:02]} 29. e5 {[%emt 0:00:36]} Ra6 {[%emt 0:01:34]} 30. Rb2 {[%emt 0:00:50]} Ra3 {[%emt 0:00:26]} 31. Rc2 {[%emt 0:01:17]} Rca4 {[%emt 0:00:07]} 32. Rh1 {[%emt 0:03:02]} Rxa2 {[%emt 0:00:14]} 33. Rhc1 {[%emt 0:01:02]} Rxc2+ {[%emt 0:00:06]} 34. Rxc2 {[%emt 0:00:03]} Ra1 {[%emt 0:00:04]} 35. Ke3 {[%emt 0:00:24]} Kc7 {[%emt 0:09:35]} 36. Kf4 {[%emt 0:00:10]} Kd7 {[%emt 0:00:14]} 37. Kg5 {[%emt 0:00:20]} Ke7 {[%emt 0:00:15]} 38. g4 {[%emt 0:00:09]} hxg4 {[%emt 0:03:32]} 39. fxg4 {[%emt 0:00:05]} Kf8 {[%emt 0:01:33]} 40. h5 {[%emt 0:00:00]} gxh5 {[%emt 0:00:00]} 41. gxh5 {[%emt 0:06:57]} Kg7 {[%emt 0:14:22]} 42. h6+ {[%emt 0:00:57]} Kg8 {[%emt 0:01:47]} 43. Rf2 {[%emt 0:01:33]} Rg1+ {[%emt 0:00:06]} 44. Kf6 {[%emt 0:01:13]} Kf8 {[%emt 0:00:08]} 0-1

[Event "WYCC 2018 G18"]
[Site "Halkidiki"]
[Date "2018.10.21"]
[Round "3"]
[White "Miller, Rachel"]
[Black "Janiashvili, Mariami"]
[Result "0-1"]
[ECO "B06"]
[WhiteElo "1859"]
[BlackElo "2081"]
[Annotator "NA"]
[PlyCount "66"]
[EventDate "2018.10.20"]
[EventType "swiss"]
[EventCountry "GRE"]
[SourceTitle "playchess.com"]
[Source "ChessBase"]
[SourceQuality "1"]
[TimeControl "40/5400+30:1800+30"]

1. e4 {[%emt 0:00:00]} g6 {[%emt 0:00:00]} 2. d4 {[%emt 0:00:00]} Bg7 {[%emt 0:00:00]} 3. Nc3 {[%emt 0:00:18]} d6 {[%emt 0:00:00]} 4. Be3 {[%emt 0:00:30]} Nd7 {[%emt 0:00:17]} 5. Qd2 {[%emt 0:00:38]} c6 {[%emt 0:00:09]} 6. Nf3 {[%emt 0:00:51]} b5 {[%emt 0:00:45]} 7. Bd3 {[%emt 0:00:31]} Ngf6 {[%emt 0:03:39]} 8. h3 {[%emt 0:00:21]} O-O {[%emt 0:00:17]} 9. O-O {[%emt 0:00:55]} e5 {[%emt 0:01:25]} 10. dxe5 {[%emt 0:03:18]} dxe5 {[%emt 0:00:16]} 11. Ne2 {[%emt 0:01:57]} a6 {[%emt 0:01:36]} 12. a4 {[%emt 0:00:47]} Bb7 {[%emt 0:00:19]} 13. Ng3 {[%emt 0:00:59]} Qe7 {[%emt 0:01:51]} 14. axb5 {[%emt 0:17:17]} cxb5 {[%emt 0:00:16]} 15. Bh6 {[%emt 0:01:33]} Bxh6 {[%emt 0:15:49]} 16. Qxh6 {[%emt 0:00:15]} Rfe8 {[%emt 0:00:30]} 17. Nh4 {[%emt 0:35:44]} Kh8 {[%emt 0:04:12]} 18. Rad1 {[%emt 0:06:24]} Ng8 {[%emt 0:04:50]} 19. Qd2 {[%emt 0:05:02]} Qxh4 {[%emt 0:03:20]} 20. Bxb5 {[%emt 0:00:15]} axb5 {[%emt 0:01:12]} 21. Qxd7 {[%emt 0:00:05]} Qe7 {[%emt 0:00:37]} 22. Qxb5 {[%emt 0:00:28]} Ba6 {[%emt 0:00:31]} 23. Qc6 {[%emt 0:06:39]} Rec8 {[%emt 0:01:16]} 24. Qd7 {[%emt 0:02:42]} Qxd7 {[%emt 0:00:32]} 25. Rxd7 {[%emt 0:00:05]} Bxf1 {[%emt 0:00:03]} 26. Nxf1 {[%emt 0:00:56]} Rxc2 {[%emt 0:00:25]} 27. Ne3 {[%emt 0:00:09]} Ra1+ {[%emt 0:01:14]} 28. Kh2 {[%emt 0:00:05]} Rxf2 {[%emt 0:00:06]} 29. Ng4 {[%emt 0:00:15]} Rxb2 {[%emt 0:00:44]} 30. Rxf7 {[%emt 0:02:01]} Raa2 {[%emt 0:01:06]} 31. Kg3 {[%emt 0:05:05]} g5 {[%emt 0:04:23]} 32. Rc7 {[%emt 0:03:05]} Rxg2+ {[%emt 0:01:22]} 33. Kf3 {[%emt 0:00:05]} Rgc2 {[%emt 0:00:57]} 0-1

[Event "WYCC 2018 G18"]
[Site "Halkidiki"]
[Date "2018.10.21"]
[Round "3"]
[White "Nguyen, Thi Minh Thu"]
[Black "Vanduyfhuys, Daria"]
[Result "1-0"]
[ECO "D52"]
[WhiteElo "1849"]
[BlackElo "2058"]
[Annotator "NA"]
[PlyCount "109"]
[EventDate "2018.10.20"]
[EventType "swiss"]
[EventCountry "GRE"]
[SourceTitle "playchess.com"]
[Source "ChessBase"]
[SourceQuality "1"]
[TimeControl "40/5400+30:1800+30"]

1. d4 {[%emt 0:00:00]} Nf6 {[%emt 0:00:00]} 2. c4 {[%emt 0:00:05]} e6 {[%emt 0:00:00]} 3. Nc3 {[%emt 0:01:08]} d5 {[%emt 0:00:00]} 4. Nf3 {[%emt 0:01:03]} c6 {[%emt 0:00:33]} 5. Bg5 {[%emt 0:00:12]} Nbd7 {[%emt 0:00:16]} 6. e3 {[%emt 0:00:47]} Be7 {[%emt 0:00:10]} 7. Bd3 {[%emt 0:00:48]} O-O {[%emt 0:01:21]} 8. O-O {[%emt 0:00:20]} dxc4 {[%emt 0:00:29]} 9. Bxc4 {[%emt 0:00:15]} Nd5 {[%emt 0:00:32]} 10. Bxe7 {[%emt 0:00:52]} Qxe7 {[%emt 0:00:10]} 11. a3 {[%emt 0:01:22]} Nxc3 {[%emt 0:12:38]} 12. bxc3 {[%emt 0:00:11]} e5 {[%emt 0:00:06]} 13. Bb3 {[%emt 0:02:37]} e4 {[%emt 0:04:37]} 14. Nd2 {[%emt 0:00:28]} Nf6 {[%emt 0:00:09]} 15. Qb1 {[%emt 0:03:52]} Re8 {[%emt 0:03:17]} 16. a4 {[%emt 0:02:51]} Bg4 {[%emt 0:08:19]} 17. Bd1 {[%emt 0:07:30]} Bxd1 {[%emt 0:02:09]} 18. Rxd1 {[%emt 0:00:17]} Rad8 {[%emt 0:01:01]} 19. c4 {[%emt 0:01:26]} Qc7 {[%emt 0:08:07]} 20. a5 {[%emt 0:10:29]} Re6 {[%emt 0:04:47]} 21. h3 {[%emt 0:00:55]} Re7 {[%emt 0:17:08]} 22. c5 {[%emt 0:00:53]} Rd5 {[%emt 0:02:03]} 23. a6 {[%emt 0:01:06]} Qc8 {[%emt 0:02:03]} 24. axb7 {[%emt 0:04:12]} Rxb7 {[%emt 0:00:06]} 25. Qc2 {[%emt 0:00:10]} Kf8 {[%emt 0:06:30]} 26. Rdb1 {[%emt 0:00:45]} Re7 {[%emt 0:02:23]} 27. Qb3 {[%emt 0:02:49]} Ne8 {[%emt 0:02:59]} 28. Nf1 {[%emt 0:06:22]} h5 {[%emt 0:05:48]} 29. Qb8 {[%emt 0:00:49]} Qd7 {[%emt 0:00:10]} 30. Rb2 {[%emt 0:01:35]} Rg5 {[%emt 0:07:03]} 31. Qf4 {[%emt 0:00:43]} Rf5 {[%emt 0:02:36]} 32. Qb8 {[%emt 0:00:20]} Rg5 {[%emt 0:00:51]} 33. Ng3 {[%emt 0:00:27]} f6 {[%emt 0:04:28]} 34. Qf4 {[%emt 0:00:11]} Rg6 {[%emt 0:02:41]} 35. Qf5 {[%emt 0:00:13]} Qxf5 {[%emt 0:00:29]} 36. Nxf5 {[%emt 0:00:07]} Rd7 {[%emt 0:01:14]} 37. Rb8 {[%emt 0:00:27]} Kf7 {[%emt 0:00:22]} 38. Ng3 {[%emt 0:00:07]} Ke7 {[%emt 0:00:49]} 39. Nxe4 {[%emt 0:00:18]} h4 {[%emt 0:00:27]} 40. Ra8 {[%emt 0:00:00]} f5 {[%emt 0:00:00]} 41. Nd2 {[%emt 0:00:53]} f4 {[%emt 0:03:19]} 42. Nf3 {[%emt 0:00:26]} Re6 {[%emt 0:05:03]} 43. Ne5 {[%emt 0:00:22]} Rxe5 {[%emt 0:00:54]} 44. dxe5 {[%emt 0:00:05]} fxe3 {[%emt 0:00:31]} 45. fxe3 {[%emt 0:00:05]} Nc7 {[%emt 0:00:09]} 46. R8xa7 {[%emt 0:00:16]} Ke6 {[%emt 0:00:37]} 47. Rb7 {[%emt 0:00:24]} g5 {[%emt 0:01:59]} 48. Kh2 {[%emt 0:00:45]} Nd5 {[%emt 0:03:08]} 49. Rxd7 {[%emt 0:00:09]} Kxd7 {[%emt 0:00:02]} 50. Rd1 {[%emt 0:00:07]} Ke7 {[%emt 0:00:50]} 51. e4 {[%emt 0:00:16]} Nb4 {[%emt 0:00:11]} 52. Rd6 {[%emt 0:00:20]} Ke8 {[%emt 0:00:35]} 53. g3 {[%emt 0:00:06]} Ke7 {[%emt 0:00:05]} 54. gxh4 {[%emt 0:00:06]} gxh4 {[%emt 0:00:04]} 55. Kg2 {[%emt 0:00:05]} 1-0